{"text_format":"1","workbook":"xlsx","n_sheets":2,"sheets":["Лист1","Лист2"],"not_rendered":{"charts":0,"images":0,"macros":1,"external_links":1,"defined_names":0,"comments":0,"pivot_tables":0},"unopened":[],"bounds":{"document_bytes":16777216,"sheet_cells":100000,"rows_first":2000,"rows_last":500,"rows_between":2000,"halvings":0,"cell_chars":16384,"cell_head_chars":4096},"cells_cut":0,"cells_raw":0,"read":"whole","date_system":"1900"}

{"sheet":"Лист1","index":0,"n_rows":11,"n_cols":25,"rows_kept":11,"cut":false,"hidden":false,"merged":[]}
["url","Путь","brand","name","prise","MSRPprise","img","sku","color","Product Information","Bottom Width","Depth","Height","Strap Length","Strap Drop","Weight","Middle Width","Top Width","Handle Length","Handle Drop","Extended Depth","Accessory Strap Length","Accessory Strap Drop","Laptop Compartment","Width"]
["https://www.6pm.com/p/loeffler-randall-ruffle-wristlet-camel/product/8957070/color/1430","Bags>>>Handbags>>>Loeffler Randall","Loeffler Randall","Ruffle Wristlet","177,99","395,00","https://m.media-amazon.com/images/I/81dnb4IiRiL.jpg;https://m.media-amazon.com/images/I/71ZE1JITHKL.jpg;https://m.media-amazon.com/images/I/61xXaoPcH9L.jpg;https://m.media-amazon.com/images/I/816OJO22KmL.jpg;https://m.media-amazon.com/images/I/811OJmhlJCL.jpg;https://m.media-amazon.com/images/I/61y9XwkZM7L.jpg",8957070,"Camel","<div>The Loeffler Randall® Ruffle Wristlet has a refined elegance that is unmatched anywhere else! </div></li></div><li><div>Made of genuine suede leather with decorative tonal stitching.</div></li><li><div>Dual shoulder straps featuring chain and leather detail.</div></li><li><div>Spacious top opening.</div></li><li><div>Beautiful beaded and sequin decor accentuating the front.</div></li><li><div>Playful ruffle detail encompassing around the bottom and through the top.</div></li><li><div>Lined interior features back wall zipper pocket.</div></li><li><div>Imported.</div></li><li><div><strong>This item may ship with an attached security tag. Merchandise returned without the original security tag attached or a damaged tag may not qualify for a refund.</strong></div></li><li><div>This product may have a manufacturer's warranty. Please visit the manufacturer's website or contact us at <a href=\"\"mailto:warranty@support.zappos.com\"\">warranty@support.zappos.com</a> for full manufacturer warranty details.</div></li><li><div>Measurements:\r\n<ul>\r\n<li> Bottom Width: 6 1⁄2 in</li>\r\n<li> Depth: 2 1⁄2 in</li>\r\n<li> Height: 10 1⁄2 in</li>\r\n<li> Strap Length: 15 1⁄2 in</li>\r\n<li> Strap Drop: 7 in</li>\r\n<li> Weight: 11.6 oz</li>\r\n</ul>\r\n</div></li></ul></div></div></div>","6 1⁄2 in","2 1⁄2 in","10 1⁄2 in","15 1⁄2 in","7 in","11.6 oz"]
["https://www.6pm.com/p/hobo-lennox-jasper/product/9031781/color/87151","Bags>>>Handbags>>>Hobo","Hobo","Lennox","167,99","278,00","https://m.media-amazon.com/images/I/71fJa2TcGFL.jpg;https://m.media-amazon.com/images/I/71RAUfXF3NL.jpg;https://m.media-amazon.com/images/I/71Va7sXN90L.jpg;https://m.media-amazon.com/images/I/91kbD5xkClL.jpg;https://m.media-amazon.com/images/I/91bvVyMkANL.jpg;https://m.media-amazon.com/images/I/61XZKN1MxEL.jpg",9031781,"Jasper","<div>Indulge in the shining Hobo® Lennox bag, it's a clean and spacious style for any look.</div></li></div><li><div>Made of vintage hide leather.</div></li><li><div>Zipper closure. </div></li><li><div>Top shoulder strap.</div></li><li><div>Flat bottom.</div></li><li><div>Lining made of polyester.</div></li><li><div>Interior back-wall zip and slip pockets.</div></li><li><div>Two interior slip pockets.</div></li><li><div>Imported.</div></li><li><div>This product may have a manufacturer's warranty. Please visit the manufacturer's website or contact us at <a href=\"\"mailto:warranty@support.zappos.com\"\">warranty@support.zappos.com</a> for full manufacturer warranty details.</div></li><li><div><strong>Please note, the hardware color and interior lining may differ from the color shown in the photo.</strong></div></li><li><div>Measurements:\r\n<ul>\r\n<li> Bottom Width: 11 1⁄4 in</li>\r\n<li> Depth: 7 1⁄2 in</li>\r\n<li> Height: 10 in</li>\r\n<li> Strap Length: 25 in</li>\r\n<li> Strap Drop: 12 in</li>\r\n<li> Weight: 1 lb 5 oz</li>\r\n</ul>\r\n</div></li></ul></div></div></div>","11 1⁄4 in","7 1⁄2 in","10 in","25 in","12 in","1 lb 5 oz"]
[]
["url","Путь","brand","name","prise","MSRPprise","img","sku","color","Product Information","Bottom Width","Depth","Height","Strap Length","Strap Drop","Weight","Middle Width","Top Width","Handle Length","Handle Drop","Extended Depth","Accessory Strap Length","Accessory Strap Drop","Laptop Compartment","Width"]
["https://www.6pm.com/p/loeffler-randall-ruffle-wristlet-camel/product/8957070/color/1430","Bags>>>Handbags>>>Loeffler Randall","Loeffler Randall","Ruffle Wristlet",177.99,395,"https://m.media-amazon.com/images/I/81dnb4IiRiL.jpg;https://m.media-amazon.com/images/I/71ZE1JITHKL.jpg;https://m.media-amazon.com/images/I/61xXaoPcH9L.jpg;https://m.media-amazon.com/images/I/816OJO22KmL.jpg;https://m.media-amazon.com/images/I/811OJmhlJCL.jpg;https://m.media-amazon.com/images/I/61y9XwkZM7L.jpg",8957070,"Camel","<div>The Loeffler Randall® Ruffle Wristlet has a refined elegance that is unmatched anywhere else! </div></li></div><li><div>Made of genuine suede leather with decorative tonal stitching.</div></li><li><div>Dual shoulder straps featuring chain and leather detail.</div></li><li><div>Spacious top opening.</div></li><li><div>Beautiful beaded and sequin decor accentuating the front.</div></li><li><div>Playful ruffle detail encompassing around the bottom and through the top.</div></li><li><div>Lined interior features back wall zipper pocket.</div></li><li><div>Imported.</div></li><li><div><strong>This item may ship with an attached security tag. Merchandise returned without the original security tag attached or a damaged tag may not qualify for a refund.</strong></div></li><li><div>This product may have a manufacturer's warranty. Please visit the manufacturer's website or contact us at <a href=\"mailto:warranty@support.zappos.com\">warranty@support.zappos.com</a> for full manufacturer warranty details.</div></li><li><div>Measurements:\r\n<ul>\r\n<li> Bottom Width: 6 1⁄2 in</li>\r\n<li> Depth: 2 1⁄2 in</li>\r\n<li> Height: 10 1⁄2 in</li>\r\n<li> Strap Length: 15 1⁄2 in</li>\r\n<li> Strap Drop: 7 in</li>\r\n<li> Weight: 11.6 oz</li>\r\n</ul>\r\n</div></li></ul></div></div></div>","6 1⁄2 in","2 1⁄2 in","10 1⁄2 in","15 1⁄2 in","7 in","11.6 oz"]
["https://www.6pm.com/p/hobo-lennox-jasper/product/9031781/color/87151","Bags>>>Handbags>>>Hobo","Hobo","Lennox",167.99,278,"https://m.media-amazon.com/images/I/71fJa2TcGFL.jpg;https://m.media-amazon.com/images/I/71RAUfXF3NL.jpg;https://m.media-amazon.com/images/I/71Va7sXN90L.jpg;https://m.media-amazon.com/images/I/91kbD5xkClL.jpg;https://m.media-amazon.com/images/I/91bvVyMkANL.jpg;https://m.media-amazon.com/images/I/61XZKN1MxEL.jpg",9031781,"Jasper","<div>Indulge in the shining Hobo® Lennox bag, it's a clean and spacious style for any look.</div></li></div><li><div>Made of vintage hide leather.</div></li><li><div>Zipper closure. </div></li><li><div>Top shoulder strap.</div></li><li><div>Flat bottom.</div></li><li><div>Lining made of polyester.</div></li><li><div>Interior back-wall zip and slip pockets.</div></li><li><div>Two interior slip pockets.</div></li><li><div>Imported.</div></li><li><div>This product may have a manufacturer's warranty. Please visit the manufacturer's website or contact us at <a href=\"mailto:warranty@support.zappos.com\">warranty@support.zappos.com</a> for full manufacturer warranty details.</div></li><li><div><strong>Please note, the hardware color and interior lining may differ from the color shown in the photo.</strong></div></li><li><div>Measurements:\r\n<ul>\r\n<li> Bottom Width: 11 1⁄4 in</li>\r\n<li> Depth: 7 1⁄2 in</li>\r\n<li> Height: 10 in</li>\r\n<li> Strap Length: 25 in</li>\r\n<li> Strap Drop: 12 in</li>\r\n<li> Weight: 1 lb 5 oz</li>\r\n</ul>\r\n</div></li></ul></div></div></div>","11 1⁄4 in","7 1⁄2 in","10 in","25 in","12 in","1 lb 5 oz"]
[]
[{"$f":"A1=A5","v":true},{"$f":"B1=B5","v":true},true,true,true,true,true,true,true,true,true,true,true,true,true,true,true,true,true,true,true,true,true,true,true]
[{"$f":"A2=A6","v":true},true,true,true,false,false,true,true,true,false,true,true,true,true,true,true,true,true,true,true,true,true,true,true,true]
[true,true,true,true,false,false,true,true,true,false,true,true,true,true,true,true,true,true,true,true,true,true,true,true,true]

{"sheet":"Лист2","index":1,"n_rows":3,"n_cols":25,"rows_kept":3,"cut":false,"hidden":false,"merged":[]}
["url","Путь","brand","name","prise","MSRPprise","img","sku","color","Product Information","Bottom Width","Depth","Height","Strap Length","Strap Drop","Weight","Middle Width","Top Width","Handle Length","Handle Drop","Extended Depth","Accessory Strap Length","Accessory Strap Drop","Laptop Compartment","Width"]
["https://www.6pm.com/p/loeffler-randall-ruffle-wristlet-camel/product/8957070/color/1430","Bags>>>Handbags>>>Loeffler Randall","Loeffler Randall","Ruffle Wristlet",177.99,395,"https://m.media-amazon.com/images/I/81dnb4IiRiL.jpg;https://m.media-amazon.com/images/I/71ZE1JITHKL.jpg;https://m.media-amazon.com/images/I/61xXaoPcH9L.jpg;https://m.media-amazon.com/images/I/816OJO22KmL.jpg;https://m.media-amazon.com/images/I/811OJmhlJCL.jpg;https://m.media-amazon.com/images/I/61y9XwkZM7L.jpg",8957070,"Camel","<div>The Loeffler Randall® Ruffle Wristlet has a refined elegance that is unmatched anywhere else! </div></li></div><li><div>Made of genuine suede leather with decorative tonal stitching.</div></li><li><div>Dual shoulder straps featuring chain and leather detail.</div></li><li><div>Spacious top opening.</div></li><li><div>Beautiful beaded and sequin decor accentuating the front.</div></li><li><div>Playful ruffle detail encompassing around the bottom and through the top.</div></li><li><div>Lined interior features back wall zipper pocket.</div></li><li><div>Imported.</div></li><li><div><strong>This item may ship with an attached security tag. Merchandise returned without the original security tag attached or a damaged tag may not qualify for a refund.</strong></div></li><li><div>This product may have a manufacturer's warranty. Please visit the manufacturer's website or contact us at <a href=\"mailto:warranty@support.zappos.com\">warranty@support.zappos.com</a> for full manufacturer warranty details.</div></li><li><div>Measurements:\r\n<ul>\r\n<li> Bottom Width: 6 1⁄2 in</li>\r\n<li> Depth: 2 1⁄2 in</li>\r\n<li> Height: 10 1⁄2 in</li>\r\n<li> Strap Length: 15 1⁄2 in</li>\r\n<li> Strap Drop: 7 in</li>\r\n<li> Weight: 11.6 oz</li>\r\n</ul>\r\n</div></li></ul></div></div></div>","6 1⁄2 in","2 1⁄2 in","10 1⁄2 in","15 1⁄2 in","7 in","11.6 oz"]
["https://www.6pm.com/p/hobo-lennox-jasper/product/9031781/color/87151","Bags>>>Handbags>>>Hobo","Hobo","Lennox",167.99,278,"https://m.media-amazon.com/images/I/71fJa2TcGFL.jpg;https://m.media-amazon.com/images/I/71RAUfXF3NL.jpg;https://m.media-amazon.com/images/I/71Va7sXN90L.jpg;https://m.media-amazon.com/images/I/91kbD5xkClL.jpg;https://m.media-amazon.com/images/I/91bvVyMkANL.jpg;https://m.media-amazon.com/images/I/61XZKN1MxEL.jpg",9031781,"Jasper","<div>Indulge in the shining Hobo® Lennox bag, it's a clean and spacious style for any look.</div></li></div><li><div>Made of vintage hide leather.</div></li><li><div>Zipper closure. </div></li><li><div>Top shoulder strap.</div></li><li><div>Flat bottom.</div></li><li><div>Lining made of polyester.</div></li><li><div>Interior back-wall zip and slip pockets.</div></li><li><div>Two interior slip pockets.</div></li><li><div>Imported.</div></li><li><div>This product may have a manufacturer's warranty. Please visit the manufacturer's website or contact us at <a href=\"mailto:warranty@support.zappos.com\">warranty@support.zappos.com</a> for full manufacturer warranty details.</div></li><li><div><strong>Please note, the hardware color and interior lining may differ from the color shown in the photo.</strong></div></li><li><div>Measurements:\r\n<ul>\r\n<li> Bottom Width: 11 1⁄4 in</li>\r\n<li> Depth: 7 1⁄2 in</li>\r\n<li> Height: 10 in</li>\r\n<li> Strap Length: 25 in</li>\r\n<li> Strap Drop: 12 in</li>\r\n<li> Weight: 1 lb 5 oz</li>\r\n</ul>\r\n</div></li></ul></div></div></div>","11 1⁄4 in","7 1⁄2 in","10 in","25 in","12 in","1 lb 5 oz"]